[Event "*** Titled Tuesday Blitz"]
[Site "Chess.com"]
[Date "2019.01.01"]
[Round "5"]
[White "biostatistician"]
[Black "mersad_98"]
[Result "0-1"]
[WhiteElo "2455"]
[BlackElo "2635"]
[TimeControl "180+2"]
[EndTime "14:12:55 PST"]
[Termination "mersad_98 won by resignation"]

1. d4 {[%clk 0:03:01.9]} 1... Nf6 {[%clk 0:03:00.8]} 2. Nf3 {[%clk 0:03:02.8]}
2... e6 {[%clk 0:03:02.2]} 3. c4 {[%clk 0:03:03.9]} 3... b6 {[%clk 0:03:01.1]}
4. Nc3 {[%clk 0:03:05.1]} 4... Bb4 {[%clk 0:03:00.5]} 5. Qc2 {[%clk 0:03:04.5]}
5... Bb7 {[%clk 0:02:59.9]} 6. a3 {[%clk 0:03:06.4]} 6... Bxc3+ {[%clk
0:03:00.4]} 7. Qxc3 {[%clk 0:03:08.3]} 7... O-O {[%clk 0:03:02.1]} 8. g3 {[%clk
0:03:08.1]} 8... c5 {[%clk 0:02:57.6]} 9. dxc5 {[%clk 0:03:07.1]} 9... bxc5
{[%clk 0:02:59.5]} 10. Bg2 {[%clk 0:03:07.8]} 10... Ne4 {[%clk 0:02:56.5]} 11.
Qc2 {[%clk 0:03:08]} 11... f5 {[%clk 0:02:55.4]} 12. O-O {[%clk 0:03:08]} 12...
Nc6 {[%clk 0:02:56.8]} 13. Rd1 {[%clk 0:03:05.9]} 13... Qe7 {[%clk 0:02:44.7]}
14. b3 {[%clk 0:02:30.9]} 14... Rfd8 {[%clk 0:02:42.8]} 15. Bb2 {[%clk 0:02:30]}
15... a5 {[%clk 0:02:41.7]} 16. Ne5 {[%clk 0:02:22]} 16... Nxe5 {[%clk
0:02:40.4]} 17. Bxe5 {[%clk 0:02:23.9]} 17... d6 {[%clk 0:02:38.3]} 18. Bb2
{[%clk 0:02:17.6]} 18... a4 {[%clk 0:02:38.9]} 19. b4 {[%clk 0:02:18.6]} 19...
d5 {[%clk 0:02:38.2]} 20. cxd5 {[%clk 0:02:15.7]} 20... Bxd5 {[%clk 0:02:37.9]}
21. Bxe4 {[%clk 0:02:06.6]} 21... Bxe4 {[%clk 0:02:25.4]} 22. Qxc5 {[%clk
0:02:06.3]} 22... Qxc5 {[%clk 0:02:19.4]} 23. bxc5 {[%clk 0:02:08.2]} 23... Rdc8
{[%clk 0:02:20.9]} 24. Rdc1 {[%clk 0:01:37.4]} 24... Rab8 {[%clk 0:02:21.8]} 25.
Be5 {[%clk 0:01:34.4]} 25... Rb3 {[%clk 0:02:22.2]} 26. f3 {[%clk 0:01:33.3]}
26... Bd5 {[%clk 0:02:22.7]} 27. Kf2 {[%clk 0:01:32.6]} 27... g5 {[%clk
0:02:23.6]} 28. Bd6 {[%clk 0:01:29.3]} 28... g4 {[%clk 0:02:24.7]} 29. f4 {[%clk
0:01:26.4]} 29... Kf7 {[%clk 0:02:20.3]} 30. Rd1 {[%clk 0:01:26.2]} 30... h5
{[%clk 0:02:20.6]} 31. Rd4 {[%clk 0:01:26.5]} 31... Ra8 {[%clk 0:02:19.3]} 32.
Rb4 {[%clk 0:01:18.6]} 32... Rxb4 {[%clk 0:02:12.1]} 33. axb4 {[%clk 0:01:20.5]}
33... Bc6 {[%clk 0:02:14]} 34. Ra3 {[%clk 0:01:16.6]} 34... Bb5 {[%clk
0:02:12.4]} 35. Ke3 {[%clk 0:01:10.3]} 35... h4 {[%clk 0:02:12.8]} 36. Kd2
{[%clk 0:00:43.8]} 36... hxg3 {[%clk 0:02:12.8]} 37. hxg3 {[%clk 0:00:45.7]}
37... Rh8 {[%clk 0:02:08.2]} 38. Rc3 {[%clk 0:00:46.5]} 38... Rh2 {[%clk
0:02:04.1]} 39. c6 {[%clk 0:00:46.2]} 39... Rxe2+ {[%clk 0:02:04.9]} 40. Kd1
{[%clk 0:00:46.9]} 40... Re4 {[%clk 0:01:48.3]} 41. c7 {[%clk 0:00:43.6]} 41...
Bd7 {[%clk 0:01:49.7]} 42. Kc1 {[%clk 0:00:34.3]} 42... Bc8 {[%clk 0:01:45.9]}
43. b5 {[%clk 0:00:32.6]} 43... Rd4 {[%clk 0:01:47.3]} 44. Bc5 {[%clk
0:00:30.1]} 44... Rd5 {[%clk 0:01:43.6]} 45. b6 {[%clk 0:00:30.9]} 45... Ke8
{[%clk 0:01:45.5]} 46. Kb2 {[%clk 0:00:27.5]} 46... Kd7 {[%clk 0:01:45.9]} 47.
Ka3 {[%clk 0:00:28.6]} 47... Kc6 {[%clk 0:01:46.3]} 48. Be3+ {[%clk 0:00:26.3]}
48... Kb5 {[%clk 0:01:30.5]} 49. Bf2 {[%clk 0:00:26.6]} 49... e5 {[%clk
0:01:22]} 50. fxe5 {[%clk 0:00:24.4]} 50... Rxe5 {[%clk 0:01:21.9]} 51. Rd3
{[%clk 0:00:21.4]} 51... Kc6 {[%clk 0:01:17.2]} 52. Rd8 {[%clk 0:00:21.6]} 52...
Kb7 {[%clk 0:01:18]} 53. Kxa4 {[%clk 0:00:23.1]} 53... Re2 {[%clk 0:01:19.4]}
54. Bd4 {[%clk 0:00:21.8]} 54... f4 {[%clk 0:01:09]} 55. gxf4 {[%clk 0:00:22.3]}
55... Re4 {[%clk 0:01:09.6]} 56. Kb5 {[%clk 0:00:21.3]} 56... Rxf4 {[%clk
0:01:09.2]} 57. Kc5 {[%clk 0:00:22.5]} 57... g3 {[%clk 0:01:06.2]} 58. Re8
{[%clk 0:00:20.5]} 58... g2 {[%clk 0:01:05.9]} 59. Re2 {[%clk 0:00:21]} 59...
Rxd4 {[%clk 0:01:02.6]} 60. Rxg2 {[%clk 0:00:19.6]} 60... Rd1 {[%clk 0:01:04.1]}
61. Ra2 {[%clk 0:00:16.4]} 61... Rc1+ {[%clk 0:01:05.4]} 62. Kb5 {[%clk
0:00:17.5]} 62... Rb1+ {[%clk 0:01:06.8]} 63. Kc5 {[%clk 0:00:18.7]} 63... Rxb6
{[%clk 0:01:05.8]} 64. Ra5 {[%clk 0:00:18.9]} 64... Rc6+ {[%clk 0:01:06.8]} 65.
Kb4 {[%clk 0:00:19.5]} 65... Bd7 {[%clk 0:00:59.1]} 66. Rb5+ {[%clk 0:00:18.9]}
66... Kc8 {[%clk 0:00:59.5]} 67. Rc5 {[%clk 0:00:18.1]} 67... Rb6+ {[%clk
0:00:59.8]} 68. Ka5 {[%clk 0:00:18.9]} 68... Rb1 {[%clk 0:01:00.2]} 69. Ka6
{[%clk 0:00:20.2]} 69... Ra1+ {[%clk 0:01:00.2]} 70. Kb6 {[%clk 0:00:21.3]}
70... Rb1+ {[%clk 0:01:01.7]} 71. Ka6 {[%clk 0:00:22.7]} 71... Bg4 {[%clk
0:01:01.6]} 72. Ka7 {[%clk 0:00:22.4]} 72... Be2 {[%clk 0:01:00.1]} 73. Rc2
{[%clk 0:00:22.6]} 73... Rb7+ {[%clk 0:01:01.3]} 74. Ka8 {[%clk 0:00:23.1]}
74... Bf3 {[%clk 0:01:02.6]} 75. Rc6 {[%clk 0:00:17.3]} 75... Rb4 {[%clk
0:00:49.9]} 76. Ka7 {[%clk 0:00:17.9]} 76... Bxc6 {[%clk 0:00:51.6]} 0-1

[Event "*** Titled Tuesday Blitz"]
[Site "Chess.com"]
[Date "2019.01.01"]
[Round "5"]
[White "MITerryble"]
[Black "Vuk2000"]
[Result "0-1"]
[WhiteElo "2816"]
[BlackElo "2763"]
[TimeControl "180+2"]
[EndTime "14:13:32 PST"]
[Termination "Vuk2000 won by checkmate"]

1. d4 {[%clk 0:03:01.9]} 1... Nf6 {[%clk 0:03:00.9]} 2. Nf3 {[%clk 0:03:03.1]}
2... e6 {[%clk 0:03:01.9]} 3. c4 {[%clk 0:03:03.7]} 3... b6 {[%clk 0:03:01.4]}
4. g3 {[%clk 0:03:04.2]} 4... Ba6 {[%clk 0:03:02.4]} 5. Qa4 {[%clk 0:03:04.6]}
5... c5 {[%clk 0:03:02.5]} 6. Bg2 {[%clk 0:03:05.4]} 6... Bb7 {[%clk 0:03:01.9]}
7. dxc5 {[%clk 0:03:06.6]} 7... Bxc5 {[%clk 0:03:02.5]} 8. O-O {[%clk
0:03:07.4]} 8... O-O {[%clk 0:03:03]} 9. Nc3 {[%clk 0:03:08.6]} 9... Qc8 {[%clk
0:02:57.7]} 10. Bf4 {[%clk 0:03:06.9]} 10... Na6 {[%clk 0:02:57.9]} 11. Rac1
{[%clk 0:03:06.9]} 11... Be7 {[%clk 0:02:58]} 12. Rfd1 {[%clk 0:03:02.3]} 12...
Nc5 {[%clk 0:02:59.1]} 13. Qc2 {[%clk 0:03:03.3]} 13... Nfe4 {[%clk 0:03:00.2]}
14. Nb5 {[%clk 0:02:40.3]} 14... Na6 {[%clk 0:02:11.3]} 15. Ne5 {[%clk
0:02:31.4]} 15... Nf6 {[%clk 0:02:09.8]} 16. Bxb7 {[%clk 0:02:14.7]} 16... Qxb7
{[%clk 0:02:11.7]} 17. Bg5 {[%clk 0:01:58]} 17... Rad8 {[%clk 0:01:57.5]} 18.
Ng4 {[%clk 0:01:54.3]} 18... Nd5 {[%clk 0:01:25.5]} 19. Rxd5 {[%clk 0:01:47.5]}
19... Nb4 {[%clk 0:00:53.4]} 20. Qd2 {[%clk 0:01:48.2]} 20... f6 {[%clk
0:00:54.9]} 21. Nd6 {[%clk 0:01:01.7]} 21... Qc7 {[%clk 0:00:19.6]} 22. Rd4
{[%clk 0:00:55.1]} 22... Nc6 {[%clk 0:00:20.5]} 23. Nb5 {[%clk 0:00:53.8]} 23...
Qb7 {[%clk 0:00:20.6]} 24. Be3 {[%clk 0:00:49.2]} 24... Nxd4 {[%clk 0:00:21.4]}
25. Bxd4 {[%clk 0:00:49.8]} 25... a6 {[%clk 0:00:22.8]} 26. Nc3 {[%clk
0:00:42.7]} 26... Rc8 {[%clk 0:00:24.2]} 27. Qd3 {[%clk 0:00:36.3]} 27... b5
{[%clk 0:00:21.2]} 28. cxb5 {[%clk 0:00:34.9]} 28... axb5 {[%clk 0:00:23.1]} 29.
Rd1 {[%clk 0:00:31.8]} 29... b4 {[%clk 0:00:24.4]} 30. Na4 {[%clk 0:00:32.3]}
30... d5 {[%clk 0:00:22.6]} 31. f4 {[%clk 0:00:29.8]} 31... Rc6 {[%clk 0:00:16]}
32. b3 {[%clk 0:00:30]} 32... Rfc8 {[%clk 0:00:16.7]} 33. Ne3 {[%clk 0:00:28.3]}
33... Rc1 {[%clk 0:00:14.7]} 34. Kf2 {[%clk 0:00:27.5]} 34... Rxd1 {[%clk
0:00:14.8]} 35. Qxd1 {[%clk 0:00:29.4]} 35... Qc6 {[%clk 0:00:15.8]} 36. Bb2
{[%clk 0:00:28.5]} 36... Rd8 {[%clk 0:00:13.9]} 37. Qd4 {[%clk 0:00:28.8]} 37...
Rf8 {[%clk 0:00:10.5]} 38. Qd3 {[%clk 0:00:26.7]} 38... Rd8 {[%clk 0:00:11.2]}
39. Qd4 {[%clk 0:00:27.4]} 39... Kf7 {[%clk 0:00:10.5]} 40. Qb6 {[%clk
0:00:24.5]} 40... Qxb6 {[%clk 0:00:04.9]} 41. Nxb6 {[%clk 0:00:26.4]} 41... Rb8
{[%clk 0:00:06.4]} 42. Na4 {[%clk 0:00:26.9]} 42... Rc8 {[%clk 0:00:07.9]} 43.
f5 {[%clk 0:00:26.6]} 43... Rc6 {[%clk 0:00:08.5]} 44. fxe6+ {[%clk 0:00:27.5]}
44... Kxe6 {[%clk 0:00:10.4]} 45. Ng2 {[%clk 0:00:25.5]} 45... g5 {[%clk
0:00:11.4]} 46. Ne1 {[%clk 0:00:24.8]} 46... Bd6 {[%clk 0:00:10.8]} 47. Nf3
{[%clk 0:00:25.8]} 47... Kf7 {[%clk 0:00:09.9]} 48. Ke3 {[%clk 0:00:22.5]} 48...
h5 {[%clk 0:00:07.1]} 49. Kd3 {[%clk 0:00:22.8]} 49... Kg6 {[%clk 0:00:05.9]}
50. Nd4 {[%clk 0:00:18.6]} 50... Ra6 {[%clk 0:00:06.9]} 51. Bc1 {[%clk
0:00:17.6]} 51... Be5 {[%clk 0:00:07.2]} 52. Be3 {[%clk 0:00:17.9]} 52... f5
{[%clk 0:00:07.6]} 53. Nf3 {[%clk 0:00:17.9]} 53... Bf6 {[%clk 0:00:08.9]} 54.
Bd2 {[%clk 0:00:19.2]} 54... Be7 {[%clk 0:00:06.3]} 55. Ne5+ {[%clk 0:00:18.8]}
55... Kg7 {[%clk 0:00:07.2]} 56. Nf3 {[%clk 0:00:18.9]} 56... Kg6 {[%clk
0:00:08.2]} 57. Nd4 {[%clk 0:00:19.9]} 57... Bf6 {[%clk 0:00:07.9]} 58. Bxb4
{[%clk 0:00:18.9]} 58... h4 {[%clk 0:00:09.1]} 59. gxh4 {[%clk 0:00:19.3]} 59...
g4 {[%clk 0:00:10.6]} 60. Bd2 {[%clk 0:00:18.9]} 60... Be5 {[%clk 0:00:11.8]}
61. h5+ {[%clk 0:00:15.4]} 61... Kxh5 {[%clk 0:00:13.1]} 62. Nxf5 {[%clk
0:00:16.4]} 62... Bxh2 {[%clk 0:00:14.3]} 63. Nc3 {[%clk 0:00:17.5]} 63... g3
{[%clk 0:00:13.9]} 64. Bf4 {[%clk 0:00:09]} 64... Kg4 {[%clk 0:00:13.6]} 65.
Bxg3 {[%clk 0:00:09.9]} 65... Bg1 {[%clk 0:00:06.9]} 66. a4 {[%clk 0:00:07.1]}
66... Kxf5 {[%clk 0:00:07.6]} 67. b4 {[%clk 0:00:08.2]} 67... d4 {[%clk
0:00:08.2]} 68. b5 {[%clk 0:00:05.5]} 68... Ra8 {[%clk 0:00:09.3]} 69. b6 {[%clk
0:00:05.2]} 69... dxc3 {[%clk 0:00:05]} 70. b7 {[%clk 0:00:06.6]} 70... Rd8+
{[%clk 0:00:06.3]} 71. Kxc3 {[%clk 0:00:08]} 71... Ba7 {[%clk 0:00:08]} 72. Kc4
{[%clk 0:00:09]} 72... Bb8 {[%clk 0:00:08.4]} 73. Bxb8 {[%clk 0:00:05.7]} 73...
Rxb8 {[%clk 0:00:10.3]} 74. a5 {[%clk 0:00:07.1]} 74... Rxb7 {[%clk 0:00:11.3]}
75. Kc5 {[%clk 0:00:08]} 75... Ke6 {[%clk 0:00:09.1]} 76. a6 {[%clk 0:00:08.9]}
76... Rb1 {[%clk 0:00:09.6]} 77. Kc6 {[%clk 0:00:09.8]} 77... Ra1 {[%clk
0:00:09.8]} 78. Kb7 {[%clk 0:00:09.4]} 78... Kd7 {[%clk 0:00:11]} 79. a7 {[%clk
0:00:11.3]} 79... Rb1+ {[%clk 0:00:11.9]} 80. Ka8 {[%clk 0:00:13.2]} 80... Kc7
{[%clk 0:00:12.7]} 81. e4 {[%clk 0:00:14.8]} 81... Rg1 {[%clk 0:00:14.1]} 82. e5
{[%clk 0:00:16.7]} 82... Rg8# {[%clk 0:00:15.6]} 0-1

[Event "*** Titled Tuesday Blitz"]
[Site "Chess.com"]
[Date "2019.01.01"]
[Round "5"]
[White "mishanick"]
[Black "2nd_life"]
[Result "0-1"]
[WhiteElo "2975"]
[BlackElo "2414"]
[TimeControl "180+2"]
[EndTime "14:17:02 PST"]
[Termination "2nd_life won by checkmate"]

1. d4 {[%clk 0:03:01.9]} 1... Nf6 {[%clk 0:02:54.9]} 2. c4 {[%clk 0:03:03]} 2...
e6 {[%clk 0:02:55.7]} 3. Nf3 {[%clk 0:03:04.4]} 3... c5 {[%clk 0:02:54.8]} 4. d5
{[%clk 0:03:05.1]} 4... exd5 {[%clk 0:02:55.8]} 5. cxd5 {[%clk 0:03:07]} 5... d6
{[%clk 0:02:56.9]} 6. Nc3 {[%clk 0:03:08.5]} 6... a6 {[%clk 0:02:57.3]} 7. a4
{[%clk 0:03:08.7]} 7... g6 {[%clk 0:02:56.6]} 8. h3 {[%clk 0:03:10.3]} 8... Bg7
{[%clk 0:02:56.9]} 9. e4 {[%clk 0:03:11.9]} 9... O-O {[%clk 0:02:55.5]} 10. Bd3
{[%clk 0:03:13.2]} 10... Re8 {[%clk 0:02:47]} 11. O-O {[%clk 0:03:13.6]} 11...
c4 {[%clk 0:02:39.3]} 12. Bc2 {[%clk 0:03:12.4]} 12... Nbd7 {[%clk 0:02:28.1]}
13. Nd2 {[%clk 0:03:07.2]} 13... Qc7 {[%clk 0:02:20.1]} 14. Qe2 {[%clk
0:03:07.8]} 14... Nb6 {[%clk 0:01:54.2]} 15. a5 {[%clk 0:03:08.1]} 15... Nbxd5
{[%clk 0:01:50.4]} 16. Nxd5 {[%clk 0:03:09.6]} 16... Nxd5 {[%clk 0:01:51.1]} 17.
Nxc4 {[%clk 0:03:11]} 17... b5 {[%clk 0:01:43]} 18. axb6 {[%clk 0:02:59.5]}
18... Nxb6 {[%clk 0:01:43.5]} 19. Na5 {[%clk 0:02:52]} 19... Be6 {[%clk
0:01:34.5]} 20. Bd3 {[%clk 0:02:52.3]} 20... d5 {[%clk 0:01:26.9]} 21. Be3
{[%clk 0:02:52.5]} 21... dxe4 {[%clk 0:01:11.6]} 22. Bxe4 {[%clk 0:02:54.4]}
22... Nd5 {[%clk 0:01:06.7]} 23. Rfc1 {[%clk 0:02:46.8]} 23... Qe5 {[%clk
0:01:02.7]} 24. Qf3 {[%clk 0:02:43.1]} 24... f5 {[%clk 0:00:35]} 25. Bd3 {[%clk
0:02:30.3]} 25... Nxe3 {[%clk 0:00:34.2]} 26. fxe3 {[%clk 0:02:32.2]} 26... Qxb2
{[%clk 0:00:34.1]} 27. Bc4 {[%clk 0:02:25.3]} 27... Bxc4 {[%clk 0:00:32.7]} 28.
Nxc4 {[%clk 0:02:26.1]} 28... Qxa1 {[%clk 0:00:28.4]} 29. Rxa1 {[%clk 0:02:28]}
29... Bxa1 {[%clk 0:00:29.6]} 30. Qd5+ {[%clk 0:02:29.6]} 30... Kh8 {[%clk
0:00:30.6]} 31. Nd6 {[%clk 0:02:31]} 31... Rf8 {[%clk 0:00:27.9]} 32. Nf7+
{[%clk 0:02:25.5]} 32... Rxf7 {[%clk 0:00:22]} 33. Qxa8+ {[%clk 0:02:21.9]}
33... Kg7 {[%clk 0:00:22.3]} 34. Qxa6 {[%clk 0:02:19.1]} 34... Bf6 {[%clk
0:00:23.9]} 35. Qd6 {[%clk 0:02:06.2]} 35... Re7 {[%clk 0:00:24.8]} 36. Kf2
{[%clk 0:02:05.1]} 36... h5 {[%clk 0:00:25.4]} 37. g3 {[%clk 0:02:04.7]} 37...
Bg5 {[%clk 0:00:25.2]} 38. Qd4+ {[%clk 0:02:05.4]} 38... Kf7 {[%clk 0:00:25]}
39. Qc4+ {[%clk 0:02:03.1]} 39... Kg7 {[%clk 0:00:25.8]} 40. Qc3+ {[%clk
0:02:02.9]} 40... Kf7 {[%clk 0:00:27]} 41. e4 {[%clk 0:02:02.9]} 41... Rxe4
{[%clk 0:00:25.5]} 42. Qh8 {[%clk 0:02:02.9]} 42... Bf6 {[%clk 0:00:26]} 43. Qc8
{[%clk 0:02:02.9]} 43... h4 {[%clk 0:00:21.8]} 44. Qd7+ {[%clk 0:02:02.5]} 44...
Re7 {[%clk 0:00:20.8]} 45. Qd5+ {[%clk 0:02:03.4]} 45... Kg7 {[%clk 0:00:22.2]}
46. g4 {[%clk 0:02:04.7]} 46... fxg4 {[%clk 0:00:23.2]} 47. hxg4 {[%clk
0:02:06.3]} 47... g5 {[%clk 0:00:23.8]} 48. Kg2 {[%clk 0:02:06.9]} 48... Re5
{[%clk 0:00:25]} 49. Qd7+ {[%clk 0:02:07.4]} 49... Re7 {[%clk 0:00:26.2]} 50.
Qc8 {[%clk 0:02:08.4]} 50... Re5 {[%clk 0:00:27.4]} 51. Kf3 {[%clk 0:02:09.6]}
51... Re7 {[%clk 0:00:28.2]} 52. Qc2 {[%clk 0:02:10.1]} 52... Re5 {[%clk
0:00:29]} 53. Qc8 {[%clk 0:02:10.3]} 53... Re7 {[%clk 0:00:30.2]} 54. Kg2 {[%clk
0:02:11.6]} 54... Re5 {[%clk 0:00:31.3]} 55. Qa8 {[%clk 0:02:12.7]} 55... Re7
{[%clk 0:00:32.1]} 56. Qb8 {[%clk 0:02:11.3]} 56... Re3 {[%clk 0:00:31.3]} 57.
Qb1 {[%clk 0:02:11.4]} 57... Rg3+ {[%clk 0:00:26.5]} 58. Kh2 {[%clk 0:02:12.1]}
58... Rxg4 {[%clk 0:00:27.7]} 59. Qb7+ {[%clk 0:02:12.5]} 59... Kh6 {[%clk
0:00:29]} 60. Qf7 {[%clk 0:02:09.4]} 60... Rf4 {[%clk 0:00:30]} 61. Qf8+ {[%clk
0:02:10.1]} 61... Kg6 {[%clk 0:00:30.5]} 62. Qg8+ {[%clk 0:02:11.1]} 62... Kh6
{[%clk 0:00:31.6]} 63. Qf8+ {[%clk 0:02:12]} 63... Bg7 {[%clk 0:00:32.4]} 64.
Qd6+ {[%clk 0:02:12.3]} 64... Kh5 {[%clk 0:00:32.1]} 65. Qd7 {[%clk 0:02:13.1]}
65... Kh6 {[%clk 0:00:25.1]} 66. Kg2 {[%clk 0:02:12.6]} 66... g4 {[%clk
0:00:17.9]} 67. Qd6+ {[%clk 0:02:10.7]} 67... Kg5 {[%clk 0:00:18.5]} 68. Qe7+
{[%clk 0:02:11.2]} 68... Bf6 {[%clk 0:00:18.7]} 69. Qc5+ {[%clk 0:02:12.3]}
69... Kg6 {[%clk 0:00:17.1]} 70. Qc8 {[%clk 0:02:11.8]} 70... g3 {[%clk
0:00:09.1]} 71. Qg8+ {[%clk 0:02:12.2]} 71... Bg7 {[%clk 0:00:09.4]} 72. Kh3
{[%clk 0:02:12.3]} 72... Kh6 {[%clk 0:00:07.9]} 73. Qd5 {[%clk 0:02:08.9]} 73...
Bf6 {[%clk 0:00:08.9]} 74. Qd2 {[%clk 0:02:09.3]} 74... Bg5 {[%clk 0:00:09.9]}
75. Qd6+ {[%clk 0:02:09.8]} 75... Kh5 {[%clk 0:00:10.9]} 76. Qe6 {[%clk
0:02:09.8]} 76... Rf2 {[%clk 0:00:10.8]} 77. Qg4+ {[%clk 0:02:10.3]} 77... Kh6
{[%clk 0:00:12]} 78. Qe6+ {[%clk 0:02:11.5]} 78... Kh5 {[%clk 0:00:13.4]} 79.
Qe8+ {[%clk 0:02:12.5]} 79... Kh6 {[%clk 0:00:14.7]} 80. Qg8 {[%clk 0:02:11.7]}
80... Rf4 {[%clk 0:00:12]} 81. Qe6+ {[%clk 0:02:09.1]} 81... Rf6 {[%clk
0:00:11.9]} 82. Qd7 {[%clk 0:02:08.8]} 82... Rf2 {[%clk 0:00:11.1]} 83. Qc7
{[%clk 0:02:07.9]} 83... Rf6 {[%clk 0:00:10.5]} 84. Qb7 {[%clk 0:02:08.2]} 84...
Rf4 {[%clk 0:00:11.5]} 85. Qc8 {[%clk 0:02:08.3]} 85... Rf6 {[%clk 0:00:11.4]}
86. Qh8+ {[%clk 0:02:09.8]} 86... Kg6 {[%clk 0:00:12.3]} 87. Qg8+ {[%clk
0:02:09.3]} 87... Kh6 {[%clk 0:00:13.5]} 88. Qe8 {[%clk 0:02:10.5]} 88... Rf4
{[%clk 0:00:14.1]} 89. Qe5 {[%clk 0:02:10.8]} 89... Rf6 {[%clk 0:00:15]} 90. Kg2
{[%clk 0:02:11.1]} 90... Rf2+ {[%clk 0:00:15.9]} 91. Kg1 {[%clk 0:02:11.6]}
91... Kh5 {[%clk 0:00:14.3]} 92. Qe8+ {[%clk 0:02:11.5]} 92... Kg4 {[%clk
0:00:14.9]} 93. Qe4+ {[%clk 0:02:12.4]} 93... Kh5 {[%clk 0:00:14.2]} 94. Qh7+
{[%clk 0:02:13]} 94... Kg4 {[%clk 0:00:15.1]} 95. Qd7+ {[%clk 0:02:13.7]} 95...
Kh5 {[%clk 0:00:15.7]} 96. Qd1+ {[%clk 0:02:14.3]} 96... Kh6 {[%clk 0:00:15.7]}
97. Qg4 {[%clk 0:02:15.7]} 97... Bf6 {[%clk 0:00:13.7]} 98. Qe6 {[%clk
0:02:09.1]} 98... Kg5 {[%clk 0:00:13.1]} 99. Qe4 {[%clk 0:02:08.6]} 99... h3
{[%clk 0:00:10.4]} 100. Qe3+ {[%clk 0:02:07.4]} 100... Kg4 {[%clk 0:00:11.1]}
101. Qe4+ {[%clk 0:02:06.3]} 101... Rf4 {[%clk 0:00:10.1]} 102. Qg6+ {[%clk
0:01:53.5]} 102... Kh4 {[%clk 0:00:11]} 103. Qh7+ {[%clk 0:01:50.5]} 103... Kg4
{[%clk 0:00:12]} 104. Qg8+ {[%clk 0:01:51.5]} 104... Bg5 {[%clk 0:00:12.6]} 105.
Qc8+ {[%clk 0:01:51.5]} 105... Rf5 {[%clk 0:00:12.5]} 106. Qc4+ {[%clk
0:01:45.4]} 106... Kh5 {[%clk 0:00:13.5]} 107. Qe2+ {[%clk 0:01:45.5]} 107...
Kh4 {[%clk 0:00:12.7]} 108. Qe4+ {[%clk 0:01:41.1]} 108... Bf4 {[%clk
0:00:08.8]} 109. Qe7+ {[%clk 0:01:28.9]} 109... Kg4 {[%clk 0:00:09.2]} 110. Qg7+
{[%clk 0:01:27.6]} 110... Kf3 {[%clk 0:00:08.8]} 111. Qb7+ {[%clk 0:01:27.3]}
111... Kg4 {[%clk 0:00:09.3]} 112. Qg7+ {[%clk 0:01:26.8]} 112... Bg5 {[%clk
0:00:10.6]} 113. Qd4+ {[%clk 0:01:27.5]} 113... Kh5 {[%clk 0:00:08.8]} 114. Qd1+
{[%clk 0:01:27.2]} 114... Kh4 {[%clk 0:00:08.8]} 115. Qd4+ {[%clk 0:01:27.7]}
115... Bf4 {[%clk 0:00:08.7]} 116. Qh8+ {[%clk 0:01:27.7]} 116... Rh5 {[%clk
0:00:09.4]} 117. Qf6+ {[%clk 0:01:20]} 117... Kg4 {[%clk 0:00:10.5]} 118. Qg6+
{[%clk 0:01:20.9]} 118... Rg5 {[%clk 0:00:11.6]} 119. Qe6+ {[%clk 0:01:21.9]}
119... Rf5 {[%clk 0:00:10.9]} 120. Qg6+ {[%clk 0:01:21.2]} 120... Bg5 {[%clk
0:00:11.6]} 121. Qe6 {[%clk 0:01:16.2]} 121... g2 {[%clk 0:00:12.5]} 122. Qe4+
{[%clk 0:01:03.3]} 122... Bf4 {[%clk 0:00:13.1]} 123. Qe2+ {[%clk 0:01:02.6]}
123... Kh4 {[%clk 0:00:13.3]} 124. Qe4 {[%clk 0:01:01.6]} 124... Kg3 {[%clk
0:00:06.5]} 125. Qe1+ {[%clk 0:00:59]} 125... Kg4 {[%clk 0:00:07.4]} 126. Qe2+
{[%clk 0:00:59.6]} 126... Kg5 {[%clk 0:00:08.5]} 127. Qe7+ {[%clk 0:00:58.3]}
127... Kg4 {[%clk 0:00:09.7]} 128. Qe2+ {[%clk 0:00:58]} 128... Kh4 {[%clk
0:00:10.8]} 129. Qe4 {[%clk 0:00:57.9]} 129... Rf6 {[%clk 0:00:11]} 130. Qd4
{[%clk 0:00:56.1]} 130... Kg4 {[%clk 0:00:05.7]} 131. Qd7+ {[%clk 0:00:46.6]}
131... Kg3 {[%clk 0:00:06.7]} 132. Qg7+ {[%clk 0:00:44.6]} 132... Kf3 {[%clk
0:00:07.9]} 133. Qxf6 {[%clk 0:00:45.3]} 133... h2# {[%clk 0:00:08.6]} 0-1

[Event "*** Titled Tuesday Blitz"]
[Site "Chess.com"]
[Date "2019.01.01"]
[Round "6"]
[White "Grandelicious"]
[Black "MITerryble"]
[Result "1-0"]
[WhiteElo "2690"]
[BlackElo "2805"]
[TimeControl "180+2"]
[EndTime "14:21:05 PST"]
[Termination "Grandelicious won by resignation"]

1. e4 {[%clk 0:03:01.9]} 1... e6 {[%clk 0:03:01.2]} 2. d4 {[%clk 0:03:02.2]}
2... d5 {[%clk 0:03:02.7]} 3. Nd2 {[%clk 0:03:03.4]} 3... Be7 {[%clk 0:03:03]}
4. e5 {[%clk 0:03:04.1]} 4... c5 {[%clk 0:03:02.3]} 5. c3 {[%clk 0:03:05.7]}
5... cxd4 {[%clk 0:03:03.3]} 6. cxd4 {[%clk 0:03:07]} 6... Nc6 {[%clk
0:03:04.8]} 7. Bd3 {[%clk 0:03:05]} 7... Qb6 {[%clk 0:03:04.4]} 8. Ndf3 {[%clk
0:03:04.2]} 8... Bb4+ {[%clk 0:03:03.9]} 9. Bd2 {[%clk 0:02:53.4]} 9... Bd7
{[%clk 0:03:05.8]} 10. Bc3 {[%clk 0:02:46.1]} 10... Nxd4 {[%clk 0:03:03.3]} 11.
Qd2 {[%clk 0:02:28.4]} 11... Bxc3 {[%clk 0:02:54.2]} 12. bxc3 {[%clk 0:02:29.3]}
12... Nc6 {[%clk 0:02:55.1]} 13. Nh3 {[%clk 0:02:26.8]} 13... Nge7 {[%clk
0:02:55.6]} 14. O-O {[%clk 0:02:26.4]} 14... Ng6 {[%clk 0:02:56.4]} 15. Rae1
{[%clk 0:02:22.7]} 15... Rc8 {[%clk 0:02:47.7]} 16. Nf4 {[%clk 0:02:18.1]} 16...
Nxf4 {[%clk 0:02:44.4]} 17. Qxf4 {[%clk 0:02:18]} 17... Ne7 {[%clk 0:02:45.8]}
18. Ng5 {[%clk 0:02:15.3]} 18... Nf5 {[%clk 0:02:35.9]} 19. Bxf5 {[%clk
0:01:46.8]} 19... exf5 {[%clk 0:02:37.8]} 20. e6 {[%clk 0:01:48.7]} 20... Bxe6
{[%clk 0:02:36.1]} 21. Qxf5 {[%clk 0:01:48.3]} 21... Ke7 {[%clk 0:02:30.2]} 22.
Qxf7+ {[%clk 0:01:47]} 1-0